bitfinex/quotes_BTCUSD_20240721
["timestamp","ask_amount","ask_price","bid_price","bid_amount"]
[1721580767238,0.319764,67584.0,67582.0,0.05]
[1721580767438,0.29591,67589.0,67583.0,0.05]
[1721580767439,0.14796,67586.0,67583.0,0.05]
[1721580767640,0.14796,67586.0,67577.0,0.11308228]
[1721580767641,0.14796,67586.0,67585.0,0.05]
[1721580767860,0.443863,67589.0,67588.0,0.05]
[1721580768016,0.247953,67589.0,67588.0,0.05]
[1721580769524,0.1,67589.0,67588.0,0.05]
[1721580769734,0.1,67589.0,67588.0,0.1145]
[1721580769951,0.147947,67592.0,67591.0,0.05]
[1721580770143,0.247947,67592.0,67591.0,0.05]
[1721580770350,0.54384,67592.0,67591.0,0.05]
[1721580770987,0.1,67592.0,67591.0,0.05]
[1721580771892,0.31133689,67601.0,67597.0,0.05]
[1721580771893,0.01548389,67601.0,67597.0,0.05]
[1721580772241,0.01548389,67601.0,67600.0,0.05]
[1721580772443,0.01548389,67601.0,67600.0,0.20438174]
[1721580772590,0.02332239,67601.0,67600.0,0.20438174]
[1721580773368,0.01548389,67601.0,67600.0,0.20438174]
[1721580776425,0.01548389,67601.0,67600.0,0.32725014]
[1721580777658,0.01548389,67601.0,67600.0,0.3272489]
[1721580778217,0.01548389,67601.0,67600.0,0.20438174]
[1721580778413,0.01548389,67601.0,67600.0,0.3272514]
[1721580779933,0.01548389,67601.0,67600.0,0.17286966]
[1721580780456,0.02346406,67601.0,67600.0,0.17286966]
[1721580780658,0.02346406,67601.0,67600.0,200.17286966]
[1721580780833,0.02346406,67601.0,67600.0,200.05]
[1721580781084,0.01548389,67601.0,67600.0,200.05]
[1721580781286,0.33520989,67601.0,67600.0,200.0]
[1721580781470,1.02691589,67601.0,67600.0,200.0]
[1721580781664,1.32276889,67601.0,67600.0,200.0]
[1721580782739,0.11548389,67601.0,67600.0,200.05]
[1721580782945,0.01548389,67601.0,67600.0,200.05]
[1721580783353,0.01548389,67601.0,67600.0,0.05]
[1721580783551,0.02031918,67601.0,67600.0,0.05]
[1721580783756,0.17134819,67601.0,67600.0,0.17288531]
[1721580783958,0.56720119,67601.0,67600.0,0.05]
[1721580784165,0.44314919,67601.0,67600.0,0.05]
[1721580784421,0.29522219,67601.0,67600.0,0.05]
[1721580784653,0.29522219,67601.0,67600.0,0.17288646]
[1721580784878,0.44314819,67601.0,67600.0,0.05]
[1721580785062,0.44314819,67601.0,67600.0,0.1727368]
[1721580785274,0.29522219,67601.0,67600.0,0.04985]
[1721580785563,0.02342219,67601.0,67600.0,0.62464849]
[1721580785793,0.02342219,67601.0,67600.0,0.92050549]
[1721580786014,0.01548389,67601.0,67600.0,0.62464849]
[1721580786224,0.01548389,67601.0,67600.0,0.92050549]
[1721580786433,0.01632389,67601.0,67600.0,0.92050549]
[1721580786868,0.295772,67620.0,67600.0,0.92050549]
[1721580786869,0.295772,67620.0,67603.0,0.04985]
[1721580787074,0.295772,67620.0,67600.0,1.50667245]
[1721580787075,0.002,67619.0,67618.0,0.693118]
[1721580787267,0.002,67619.0,67618.0,0.47669722]
[1721580787678,0.002,67619.0,67618.0,0.92036522]
[1721580787883,0.002,67619.0,67618.0,0.62458622]
[1721580788090,0.002,67619.0,67618.0,0.92036522]
[1721580788295,0.002,67629.0,67628.0,0.197717]
[1721580788499,0.002,67629.0,67628.0,0.35209874]
[1721580788747,0.002,67629.0,67628.0,0.32706]
[1721580789269,0.002,67629.0,67628.0,0.32706249]
[1721580789689,0.002,67629.0,67628.0,0.47666249]
[1721580790107,0.002,67629.0,67628.0,0.17268075]
[1721580790316,0.149865,67629.0,67628.0,0.17268075]
[1721580790738,0.149865,67629.0,67628.0,0.17269168]
[1721580790739,0.002,67629.0,67628.0,0.17269168]
[1721580790740,0.002,67629.0,67628.0,0.04985]
[1721580790961,0.002,67629.0,67628.0,0.17269129]
[1721580791178,0.002,67629.0,67628.0,0.47666418]
[1721580792362,0.002,67629.0,67628.0,0.62453118]
[1721580793209,0.002,67629.0,67628.0,0.92026618]
[1721580793420,0.1718,67638.0,67628.0,0.92026618]
[1721580793421,0.0911,67637.0,67628.0,0.62453118]
[1721580793635,0.0911,67637.0,67636.0,0.04985]
[1721580793844,0.147854,67635.0,67634.0,0.04985]
[1721580794048,0.147854,67635.0,67634.0,0.17267655]
[1721580794250,0.443558,67635.0,67634.0,0.17267655]
[1721580794671,1.034966,67635.0,67634.0,0.12282655]
[1721580794880,0.0911,67637.0,67630.0,0.04985]
[1721580794881,0.147856,67633.0,67630.0,0.04985]
[1721580795108,0.147856,67633.0,67632.0,0.04985]
[1721580795315,0.1718,67636.0,67633.0,0.04985]
[1721580795489,0.443563,67634.0,67633.0,0.04985]
[1721580795696,0.1,67635.0,67634.0,0.04985]
[1721580795895,0.002,67639.0,67637.0,0.04985]
[1721580795896,0.147845,67638.0,67637.0,0.04985]
[1721580796195,0.443536,67638.0,67637.0,0.32705766]
[1721580796399,0.567491,67638.0,67634.0,0.04985]
[1721580796604,0.567491,67638.0,67619.0,0.05]
[1721580796605,0.07717479,67635.0,67622.0,0.002794]
[1721580796812,0.1,67637.0,67619.0,0.11235]
[1721580796813,0.07717479,67636.0,67623.0,0.27722352]
[1721580797016,0.1718,67630.0,67624.0,0.12563578]
[1721580797222,0.1,67629.0,67625.0,0.12284178]
[1721580797425,0.1,67629.0,67626.0,0.12284178]
[1721580797426,0.443609,67627.0,67626.0,0.12284178]
[1721580797638,0.00836,67660.0,67630.0,0.04985]
[1721580797847,0.0779,67663.0,67631.0,0.28001752]
[1721580797848,0.1718,67645.0,67631.0,0.28001752]
[1721580798054,0.295695,67638.0,67632.0,0.12284178]
[1721580798268,0.295695,67638.0,67629.0,0.0625]
[1721580798269,0.147856,67634.0,67633.0,0.28001752]
[1721580798471,0.1718,67637.0,67633.0,0.27722352]
[1721580798673,0.1,67636.0,67634.0,0.12563578]
[1721580798976,0.1,67636.0,67635.0,0.27722352]
[1721580798977,0.24785,67636.0,67635.0,0.27722352]
[1721580799591,0.1,67636.0,67635.0,0.41932352]
[1721580799813,0.147844,67639.0,67635.0,0.29648174]
[1721580800016,0.247846,67638.0,67636.0,0.12561593]
[1721580800218,0.1,67638.0,67637.0,0.27720367]
[1721580800403,0.1,67638.0,67637.0,0.27720634]
[1721580800584,0.1,67638.0,67637.0,0.32720634]
[1721580801202,0.1,67643.0,67642.0,0.05]
[1721580801402,0.1718,67651.0,67642.0,0.05]
[1721580801403,0.1718,67651.0,67643.0,0.002794]
[1721580801752,0.1718,67651.0,67644.0,0.27720634]
[1721580801952,0.1718,67651.0,67645.0,0.1228246]
[1721580802157,0.1718,67651.0,67646.0,0.27720634]
[1721580802400,9e-05,67672.0,67646.0,0.15438174]
[1721580802607,9e-05,67672.0,67647.0,0.12280351]
[1721580802608,0.01497633,67660.0,67647.0,0.12280351]
[1721580802815,0.1718,67652.0,67648.0,0.15438174]
[1721580803020,0.1718,67652.0,67649.0,0.12280351]
[1721580803224,0.1718,67652.0,67650.0,0.2771864]
[1721580803422,0.1718,67652.0,67650.0,0.15438174]
[1721580803681,0.01009498,67664.0,67652.0,0.05]
[1721580803881,0.01009498,67664.0,67641.0,0.07717479]
[1721580803882,0.9979525,67665.0,67663.0,0.1421]
[1721580804085,0.9979525,67665.0,67654.0,0.11213163]
[1721580804306,0.9979525,67665.0,67656.0,0.04963163]
[1721580804511,0.9979525,67665.0,67664.0,0.19173163]
[1721580804715,0.9979525,67665.0,67664.0,0.46230636]
[1721580804926,0.9979525,67665.0,67664.0,0.41926747]
[1721580805144,0.9979525,67665.0,67664.0,0.33966747]
[1721580805392,0.295537,67674.0,67664.0,0.33966747]
[1721580805393,1.53543726,67680.0,67679.0,0.374212]
[1721580805624,0.00167614,67706.0,67704.0,0.649004]
[1721580805842,0.00167614,67706.0,67679.0,0.82012922]
[1721580805843,0.17337,67705.0,67695.0,0.05]
[1721580806046,0.17337,67705.0,67696.0,0.12549988]
[1721580806047,0.00157,67705.0,67696.0,0.12549988]
[1721580806261,0.00157,67705.0,67697.0,0.58575459]
[1721580806262,0.147702,67704.0,67697.0,0.58575459]
[1721580806472,0.00157,67705.0,67697.0,0.58575459]
[1721580806473,0.00157,67705.0,67702.0,0.09963163]
[1721580806684,0.00157,67705.0,67697.0,0.0625]
[1721580806685,0.00157,67705.0,67704.0,0.09963163]
[1721580806895,0.00157,67705.0,67704.0,0.52441805]
[1721580807096,0.00157,67705.0,67704.0,0.37671705]
[1721580807307,0.00167614,67706.0,67704.0,0.37671705]
[1721580807308,0.00167614,67706.0,67705.0,0.09963163]
[1721580807516,0.17347614,67706.0,67705.0,0.15438174]
[1721580807724,0.32117314,67706.0,67705.0,0.15438174]
[1721580807929,0.91196114,67706.0,67705.0,0.15438174]
[1721580808158,0.91196114,67706.0,67689.0,0.002794]
[1721580808159,0.147722,67695.0,67689.0,0.002794]
[1721580808370,0.443163,67695.0,67694.0,0.15438174]
[1721580808558,0.2141,67696.0,67682.0,0.002794]
[1721580808770,0.2141,67696.0,67680.0,0.04963163]
[1721580808771,0.147727,67692.0,67691.0,0.15438174]
[1721580808974,0.443182,67692.0,67691.0,0.15438174]
[1721580809182,0.147727,67692.0,67691.0,0.15438174]
[1721580809595,0.443182,67692.0,67691.0,0.15438174]
[1721580809794,0.443182,67692.0,67677.0,0.04963163]
[1721580809795,0.295455,67692.0,67677.0,0.04963163]
[1721580809996,0.07717479,67695.0,67678.0,0.27991534]
[1721580809997,0.147756,67679.0,67678.0,0.27991534]
[1721580810197,0.14017479,67703.0,67678.0,0.27991534]
[1721580810198,0.1,67699.0,67682.0,0.05]
[1721580810398,0.00054117,67710.0,67685.0,0.15438174]
[1721580810399,0.2141,67701.0,67685.0,0.15438174]
[1721580810601,0.2141,67701.0,67686.0,0.002794]
[1721580810602,0.147738,67687.0,67686.0,0.002794]
[1721580810810,0.147738,67687.0,67686.0,0.15717574]
[1721580811013,0.443215,67687.0,67686.0,0.15438174]
[1721580811244,0.738692,67687.0,67686.0,0.15438174]
[1721580811475,0.738692,67687.0,67677.0,0.04963163]
[1721580811476,0.443275,67678.0,67677.0,0.04963163]
[1721580811647,0.063,67692.0,67680.0,0.04963163]
[1721580811881,0.063,67692.0,67681.0,0.15717574]
[1721580812088,0.295402,67705.0,67681.0,0.15717574]
[1721580812089,0.00167614,67706.0,67691.0,0.15438174]
[1721580812297,0.00167614,67706.0,67693.0,0.04963163]
[1721580812495,0.147704,67703.0,67699.0,0.15438174]
[1721580812694,0.44313,67700.0,67699.0,0.15438174]
[1721580812808,0.73855,67700.0,67699.0,0.15438174]
[1721580813009,1.03397,67700.0,67699.0,0.15438174]
[1721580813383,1.03397,67700.0,67678.0,0.07717479]
[1721580813384,0.147745,67684.0,67683.0,0.04963163]
[1721580813534,0.147745,67684.0,67683.0,0.27710931]
[1721580813742,0.2141,67694.0,67683.0,0.20401337]
[1721580813743,0.147736,67688.0,67683.0,0.20401337]
[1721580813943,0.295461,67691.0,67684.0,0.15717574]
[1721580814143,0.2141,67694.0,67684.0,0.15717574]
[1721580814343,0.443229,67685.0,67684.0,0.15717574]
[1721580814550,0.443229,67685.0,67684.0,0.15438174]
[1721580814551,0.738715,67685.0,67684.0,0.15438174]
[1721580814950,0.147743,67685.0,67684.0,0.27711955]
[1721580815192,0.2141,67694.0,67684.0,0.27711955]
[1721580815193,0.2141,67694.0,67687.0,0.04963163]
[1721580815371,0.2141,67694.0,67689.0,0.04963163]
[1721580815570,0.14773,67691.0,67690.0,0.15717574]
[1721580815777,0.14773,67691.0,67690.0,0.15438174]
[1721580815981,0.73865,67691.0,67690.0,0.15438174]
[1721580816409,1.03411,67691.0,67690.0,0.15438174]
[1721580816608,0.73865,67691.0,67690.0,0.15438174]
[1721580816816,0.147749,67682.0,67681.0,0.04963163]
[1721580817040,0.147749,67682.0,67681.0,0.32674989]
[1721580817289,0.2141,67694.0,67681.0,0.32674989]
[1721580817534,0.443242,67683.0,67682.0,0.27991226]
[1721580817861,0.443242,67683.0,67682.0,0.27711826]
[1721580818556,0.443242,67683.0,67682.0,0.32674989]
[1721580819018,0.147747,67683.0,67682.0,0.32674989]
[1721580819214,0.147747,67683.0,67682.0,0.27711826]
[1721580819437,0.147747,67683.0,67682.0,0.32674989]
[1721580819641,0.443242,67683.0,67682.0,0.27711826]
[1721580819792,0.443242,67683.0,67682.0,0.32766289]
[1721580820357,0.443242,67683.0,67682.0,0.27803126]
[1721580821115,0.443242,67683.0,67682.0,0.27803344]
[1721580821355,0.738737,67683.0,67682.0,0.27803344]
[1721580821581,0.443242,67683.0,67682.0,0.32766575]
[1721580821901,0.443242,67683.0,67682.0,0.27803412]
[1721580822325,0.802337,67683.0,67682.0,0.000913]
[1721580822534,1.179632,67683.0,67682.0,0.000913]
[1721580823331,1.575127,67683.0,67682.0,0.000913]
[1721580823535,1.279632,67683.0,67682.0,0.000913]
[1721580823750,1.28000037,67683.0,67682.0,0.000913]
[1721580824377,1.57549537,67683.0,67682.0,0.000913]
[1721580825447,1.57549537,67683.0,67657.0,0.05115801]
[1721580825448,0.147799,67659.0,67658.0,0.05115801]
[1721580825654,0.73902,67657.0,67656.0,0.02963863]
[1721580825858,0.443412,67657.0,67656.0,0.15242257]
[1721580826444,0.443412,67657.0,67656.0,0.12278394]
[1721580826934,0.73902,67657.0,67656.0,0.12278394]
[1721580827401,0.147815,67652.0,67651.0,0.02963863]
[1721580827627,0.443445,67652.0,67651.0,0.12279523]
[1721580828036,0.739075,67652.0,67651.0,0.12279523]
[1721580828456,0.739075,67652.0,67651.0,0.27717697]
[1721580829285,1.034705,67652.0,67651.0,0.27717697]
[1721580829775,1.034705,67652.0,67651.0,0.12279523]
[1721580830218,0.147834,67643.0,67642.0,0.02963863]
[1721580830398,0.14781,67654.0,67653.0,0.02963863]
[1721580830596,0.2141,67663.0,67657.0,0.02963863]
[1721580830597,0.1478,67659.0,67657.0,0.02963863]
[1721580830806,0.1,67668.0,67653.0,0.27719299]
[1721580830807,0.2141,67672.0,67666.0,0.02963863]
[1721580831025,0.14778,67668.0,67667.0,0.27719299]
[1721580831154,0.2141,67680.0,67674.0,0.02963863]
[1721580831355,0.147763,67676.0,67675.0,0.12281125]
[1721580831967,0.361855,67680.0,67677.0,0.02963863]
[1721580832232,0.361855,67680.0,67666.0,0.05]
[1721580832234,0.147756,67679.0,67678.0,0.30683162]
[1721580832393,0.295502,67682.0,67680.0,0.02963863]
[1721580832592,0.295502,67682.0,67670.0,0.051206]
[1721580832593,0.377281,67687.0,67683.0,0.02963863]
[1721580832797,0.147747,67684.0,67683.0,0.02963863]
[1721580832998,0.443237,67684.0,67683.0,0.12274939]
[1721580833197,0.147747,67684.0,67683.0,0.30676921]
[1721580833572,0.443237,67684.0,67683.0,0.27713058]
[1721580833772,0.44305923,67684.0,67683.0,0.27713058]
[1721580834713,0.73854923,67684.0,67683.0,0.27713058]
[1721580834919,0.44305923,67684.0,67683.0,0.27713058]
[1721580836296,0.44305923,67684.0,67683.0,0.27712882]
[1721580836534,0.73854923,67684.0,67683.0,0.12274708]
[1721580837162,1.03403923,67684.0,67683.0,0.12274708]
[1721580837387,0.73854923,67684.0,67683.0,0.12274708]
[1721580837600,0.1,67684.0,67672.0,0.02963863]
[1721580837819,0.1,67684.0,67664.0,0.02963863]
[1721580837820,0.147786,67665.0,67664.0,0.02963863]
[1721580837993,0.2141,67671.0,67663.0,0.02963863]
[1721580837994,0.147789,67664.0,67663.0,0.02963863]
[1721580838168,0.295556,67669.0,67663.0,0.15241]
[1721580838329,0.2141,67671.0,67663.0,0.02963863]
[1721580838330,0.147789,67664.0,67663.0,0.02963863]
[1721580838531,0.443367,67664.0,67663.0,0.15241418]
[1721580838732,0.443367,67664.0,67663.0,0.27715729]
[1721580838733,0.738945,67664.0,67663.0,0.27715729]
[1721580838935,0.443367,67664.0,67663.0,0.27715729]
[1721580839255,0.583567,67664.0,67663.0,0.27715729]
[1721580839454,1.174723,67664.0,67663.0,0.27715729]
[1721580839865,0.443419,67656.0,67655.0,0.02963863]
[1721580840072,0.443419,67656.0,67655.0,0.27717028]
[1721580840302,0.739032,67656.0,67655.0,0.27717028]
[1721580840863,0.147806,67656.0,67655.0,0.30680891]
[1721580841082,0.208173,67671.0,67670.0,0.02963863]
[1721580841293,0.0798,67673.0,67670.0,0.30680891]
[1721580841500,0.0798,67673.0,67672.0,0.02963863]
[1721580841679,0.37260379,67699.0,67677.0,0.02963863]
[1721580841680,0.0798,67682.0,67677.0,0.02963863]
[1721580841915,0.0798,67682.0,67678.0,0.27713991]
[1721580841916,0.147756,67679.0,67678.0,0.27713991]
[1721580842137,0.147756,67679.0,67678.0,0.27713731]
[1721580842138,0.73878,67679.0,67678.0,0.27713731]
[1721580842296,0.147756,67679.0,67678.0,0.27713731]
[1721580842501,0.443268,67679.0,67678.0,0.27713731]
[1721580843059,0.0798,67682.0,67678.0,0.27713731]
[1721580843060,0.0798,67682.0,67679.0,0.02963863]
[1721580843280,0.0798,67682.0,67680.0,0.30677594]
[1721580843487,0.523051,67682.0,67681.0,0.12275557]
[1721580843664,0.523051,67682.0,67681.0,0.27713731]
[1721580843905,0.227549,67682.0,67681.0,0.30677594]
[1721580844112,0.0798,67682.0,67681.0,0.30677594]
[1721580844316,0.295476,67688.0,67681.0,0.30677594]
[1721580844317,0.295476,67688.0,67687.0,0.02963863]
[1721580844523,0.543212,67688.0,67687.0,0.15438174]
[1721580846029,0.543212,67688.0,67672.0,0.19777]
[1721580846030,0.17717479,67688.0,67672.0,0.02963863]
[1721580846233,0.2141,67680.0,67677.0,0.02963863]
[1721580846437,0.443268,67679.0,67678.0,0.15438174]
[1721580846907,0.147756,67679.0,67678.0,0.27713223]
[1721580847366,0.2141,67680.0,67678.0,0.30677086]
[1721580847583,0.361854,67680.0,67679.0,0.15238912]
[1721580847796,0.657362,67680.0,67679.0,0.15438174]
[1721580848006,0.657362,67680.0,67679.0,0.27712675]
[1721580848664,0.2141,67680.0,67679.0,0.30676538]
[1721580848900,0.147752,67681.0,67679.0,0.36846538]
[1721580849118,0.002794,67701.0,67700.0,0.52276863]
[1721580849392,0.002794,67701.0,67700.0,0.50442846]
[1721580849625,0.002794,67701.0,67700.0,0.79984846]
[1721580850035,0.00167614,67706.0,67704.0,0.02963863]
[1721580850251,0.00167614,67706.0,67704.0,0.30671846]
[1721580850680,0.00167614,67706.0,67704.0,0.27707983]
[1721580850890,0.00167614,67706.0,67704.0,0.15438174]
[1721580851101,0.443928,67705.0,67704.0,0.15438174]
[1721580851313,0.799727,67705.0,67704.0,0.15438174]
[1721580851534,0.147717,67697.0,67696.0,0.02963863]
[1721580851759,0.295427,67699.0,67689.0,0.02963863]
[1721580851760,0.58670179,67699.0,67689.0,0.02963863]
[1721580851967,0.58670179,67699.0,67687.0,0.02963863]
[1721580851968,0.147736,67688.0,67687.0,0.02963863]
[1721580852190,0.509567,67690.0,67684.0,0.02963863]
[1721580852191,0.2141,67690.0,67684.0,0.02963863]
[1721580852410,0.443229,67685.0,67684.0,0.02963863]
[1721580852628,0.147743,67685.0,67684.0,0.02963863]
[1721580852845,0.295473,67688.0,67684.0,0.02963863]
[1721580853060,0.2141,67690.0,67688.0,0.02963863]
[1721580853276,0.2141,67690.0,67688.0,0.15438174]
[1721580853494,0.443206,67689.0,67688.0,0.18402037]
[1721580853924,0.147734,67689.0,67688.0,0.18402037]
[1721580854173,0.295436,67697.0,67689.0,0.02963863]
[1721580854418,0.2141,67698.0,67679.0,0.2]
[1721580854419,0.543157,67696.0,67695.0,0.02963863]
[1721580854618,0.443163,67695.0,67694.0,0.02963863]
[1721580854824,0.443176,67693.0,67692.0,0.02963863]
[1721580855068,0.1,67696.0,67695.0,0.02963863]
[1721580855273,0.443164,67695.0,67694.0,0.02963863]
[1721580855486,0.147727,67692.0,67691.0,0.02963863]
[1721580856551,0.147727,67692.0,67691.0,0.15438174]
[1721580856772,0.443182,67692.0,67691.0,0.15438174]
[1721580857064,0.738637,67692.0,67691.0,0.15438174]
[1721580857285,0.1,67695.0,67691.0,0.15438174]
[1721580857495,0.295447,67694.0,67692.0,0.15438174]
[1721580857698,0.443177,67693.0,67692.0,0.15438174]
[1721580857902,0.147738,67688.0,67686.0,0.02963863]
[1721580858111,0.147736,67688.0,67687.0,0.15438174]
[1721580858339,0.443209,67688.0,67687.0,0.15438174]
[1721580858549,0.798782,67688.0,67687.0,0.15438174]
[1721580859845,0.798782,67688.0,67679.0,0.2]
[1721580859846,0.228752,67681.0,67679.0,0.2]
[1721580860093,0.228752,67681.0,67680.0,0.15438174]
[1721580860484,0.081,67681.0,67680.0,0.18402037]
[1721580860727,0.228738,67687.0,67686.0,0.02963863]
[1721580860948,0.228738,67687.0,67686.0,0.18402037]
[1721580860949,0.081,67687.0,67686.0,0.18402037]
[1721580861373,0.228738,67687.0,67686.0,0.18402037]
[1721580861581,0.081,67687.0,67686.0,0.18402037]
[1721580862213,0.228738,67687.0,67686.0,0.18402037]
[1721580862419,0.524215,67687.0,67686.0,0.18402037]
[1721580862604,0.081,67687.0,67686.0,0.18402037]
[1721580863573,0.228738,67687.0,67686.0,0.15438174]
[1721580863778,0.524215,67687.0,67686.0,0.15438174]
[1721580864197,0.081,67687.0,67686.0,0.15438174]
[1721580864394,0.081,67687.0,67686.0,0.18402037]
[1721580864804,0.2141,67690.0,67689.0,0.02963863]
[1721580865008,0.2141,67690.0,67689.0,0.18402037]
[1721580865009,0.757296,67690.0,67689.0,0.18402037]
[1721580865523,0.461832,67690.0,67689.0,0.18402037]
[1721580865919,0.757296,67690.0,67689.0,0.18402037]
[1721580866182,0.757296,67690.0,67689.0,0.15438174]
[1721580867189,0.461832,67690.0,67689.0,0.18402037]
[1721580867421,0.1,67690.0,67689.0,0.18402037]
[1721580867638,0.24773,67691.0,67690.0,0.02963863]
[1721580867841,0.24773,67691.0,67690.0,0.18402037]
[1721580868047,0.081,67694.0,67693.0,0.02963863]
[1721580868250,0.081,67694.0,67693.0,0.18402037]
[1721580868862,0.228723,67694.0,67693.0,0.15438174]
[1721580869073,0.328723,67694.0,67693.0,0.15438174]
[1721580869244,0.62417,67694.0,67693.0,0.15438174]
[1721580869479,0.62417,67694.0,67690.0,0.02963863]
[1721580869480,0.14773,67691.0,67690.0,0.02963863]
[1721580869684,0.147725,67693.0,67692.0,0.02963863]
[1721580870099,0.443176,67693.0,67692.0,0.02963863]
[1721580870301,0.181,67694.0,67679.0,0.347756]
[1721580870302,0.147734,67689.0,67688.0,0.02963863]
[1721580870501,0.147734,67689.0,67688.0,0.18402037]
[1721580871225,0.295461,67691.0,67690.0,0.02963863]
[1721580871226,0.443191,67691.0,67690.0,0.02963863]
[1721580872412,0.181,67694.0,67691.0,0.02963863]
[1721580872545,0.181,67694.0,67693.0,0.02963863]
[1721580872546,0.081,67694.0,67693.0,0.02963863]
[1721580872758,0.081,67694.0,67693.0,0.18402037]
[1721580872759,0.228723,67694.0,67693.0,0.18402037]
[1721580872960,0.181,67694.0,67693.0,0.18402037]
[1721580873165,0.355526,67699.0,67698.0,0.02963863]
[1721580873166,0.0601,67699.0,67698.0,0.02963863]
[1721580873383,0.081,67700.0,67699.0,0.02963863]
[1721580874000,0.27503,67705.0,67704.0,0.02963863]
[1721580874001,0.06093,67705.0,67704.0,0.02963863]
[1721580874204,0.06093,67705.0,67704.0,0.18402037]
[1721580874205,0.00083,67705.0,67704.0,0.18402037]
[1721580874901,0.148529,67705.0,67704.0,0.18402037]
[1721580875154,0.00083,67705.0,67704.0,0.18402037]
[1721580875574,0.148529,67705.0,67704.0,0.18402037]
[1721580876194,0.148529,67705.0,67704.0,0.38402037]
[1721580876605,0.953427,67705.0,67704.0,0.35438174]
[1721580876809,0.953427,67705.0,67704.0,0.2]
[1721580878211,0.953427,67705.0,67704.0,0.22963863]
[1721580878212,0.362629,67705.0,67704.0,0.22963863]
[1721580878441,0.00083,67705.0,67704.0,0.38402037]
[1721580879483,0.00083,67705.0,67704.0,0.38372097]
[1721580879891,0.00083,67705.0,67704.0,0.53142197]
[1721580880541,0.00083,67705.0,67704.0,0.506411]
[1721580880948,0.00083,67705.0,67704.0,0.38372097]
[1721580883794,0.00083,67705.0,67704.0,0.35408234]
[1721580883795,0.443928,67705.0,67704.0,0.35408234]
[1721580884006,0.739327,67705.0,67704.0,0.35408234]
[1721580884421,0.739327,67705.0,67704.0,0.38372097]
[1721580884422,0.00083,67705.0,67704.0,0.38372097]
[1721580886558,0.586728,67705.0,67704.0,0.1997006]
[1721580886757,0.882127,67705.0,67704.0,0.1997006]
[1721580887374,1.177526,67705.0,67704.0,0.1997006]
[1721580887839,0.882127,67705.0,67704.0,0.1997006]
[1721580888048,0.586728,67705.0,67704.0,0.1997006]
[1721580889715,0.586728,67705.0,67704.0,0.38372097]
[1721580890388,0.586728,67705.0,67704.0,0.35408234]
[1721580890617,0.882127,67705.0,67704.0,0.1997006]
[1721580890866,0.586728,67705.0,67704.0,0.1997006]
[1721580892713,0.291329,67705.0,67704.0,0.22933923]
[1721580892933,0.523328,67705.0,67704.0,0.22933923]
[1721580893340,0.08023,67705.0,67704.0,0.38372097]
[1721580893740,0.227929,67705.0,67704.0,0.38372097]
[1721580894569,0.08023,67705.0,67704.0,0.38372097]
[1721580894771,0.00033,67705.0,67704.0,0.38372097]
[1721580901148,0.00036453,67706.0,67705.0,0.02963863]
[1721580901355,0.00036453,67706.0,67705.0,0.68831837]
[1721580901556,0.00036453,67706.0,67705.0,0.51560459]
[1721580901763,0.00036453,67706.0,67705.0,0.81100359]
[1721580901963,0.00036453,67706.0,67705.0,1.15640259]
[1721580903080,0.00036453,67706.0,67705.0,1.32911637]
[1721580903287,0.00036453,67706.0,67705.0,1.45179156]
[1721580905005,0.00036453,67706.0,67705.0,1.50179156]
[1721580905239,0.00036453,67706.0,67705.0,1.45179156]
[1721580905441,0.00036453,67706.0,67705.0,0.30669556]
[1721580905668,0.00036453,67706.0,67704.0,0.1997006]
[1721580905669,0.147699,67705.0,67704.0,0.1997006]
[1721580905880,0.00036453,67706.0,67704.0,0.35408234]
[1721580906090,0.00036453,67706.0,67705.0,0.15438174]
[1721580906505,0.00036453,67706.0,67705.0,0.18402037]
[1721580907158,0.00036453,67706.0,67704.0,0.1997006]
[1721580907159,0.147699,67705.0,67704.0,0.1997006]
[1721580907368,0.738497,67705.0,67704.0,0.35408234]
[1721580908014,0.147699,67705.0,67704.0,0.35408234]
[1721580908230,0.147699,67705.0,67704.0,0.38372097]
[1721580908643,0.00036453,67706.0,67705.0,0.02963863]
[1721580908853,0.00036453,67706.0,67705.0,0.18402037]
[1721580909031,0.14806153,67706.0,67705.0,0.15438174]
[1721580909272,0.73884953,67706.0,67705.0,0.15438174]
[1721580909945,0.73884953,67706.0,67704.0,0.1997006]
[1721580909946,0.738497,67705.0,67704.0,0.1997006]
[1721580910171,0.884797,67705.0,67704.0,0.1997006]
[1721580910392,1.280196,67705.0,67704.0,0.1997006]
[1721580910863,1.280196,67705.0,67690.0,0.49268734]
[1721580910864,0.295426,67699.0,67690.0,0.49268734]
[1721580911072,0.147725,67694.0,67691.0,0.15438174]
[1721580911286,0.002794,67693.0,67691.0,0.15438174]
[1721580911467,0.002794,67694.0,67691.0,0.15438174]
[1721580911720,0.150518,67694.0,67691.0,0.15438174]
[1721580911931,0.150518,67694.0,67684.0,0.000924]
[1721580911933,0.147743,67685.0,67684.0,0.000924]
[1721580912141,1.032815,67685.0,67684.0,0.15530574]
[1721580912575,0.818715,67685.0,67684.0,0.15530574]
[1721580912784,1.032815,67685.0,67684.0,0.000924]
[1721580912993,1.099115,67685.0,67684.0,0.000924]
[1721580913409,1.394601,67685.0,67684.0,0.000924]
[1721580915149,1.494601,67685.0,67684.0,0.000924]
[1721580915363,1.96194461,67685.0,67684.0,0.000924]
[1721580915574,1.81044837,67685.0,67684.0,0.000924]
[1721580915819,1.81044837,67685.0,67658.0,0.50493863]
[1721580915820,1.49648737,67678.0,67658.0,0.50493863]
[1721580916040,1.59648737,67678.0,67658.0,0.50493863]
[1721580916483,1.280609,67678.0,67663.0,0.02963863]
[1721580916972,1.280609,67678.0,67662.0,0.02963863]
[1721580917178,1.30097037,67678.0,67662.0,0.02963863]
[1721580917396,1.280609,67678.0,67662.0,0.02963863]
[1721580917610,1.30097037,67678.0,67660.0,0.02963863]
[1721580917838,1.59648737,67678.0,67656.0,0.02963863]
[1721580918055,1.59648737,67678.0,67654.0,0.46304871]
[1721580918056,0.147799,67659.0,67658.0,0.02963863]
[1721580918271,0.295556,67669.0,67668.0,0.02963863]
[1721580918479,0.295556,67669.0,67651.0,0.147816]
[1721580918480,0.147791,67663.0,67662.0,0.02963863]